fUST/lending_fUST_20250601
["ID","MTS","AMOUNT","RATE_DAILY","PERIOD"]
[363600818,1748781046078,-648.48,0.00019178,2]
[363600832,1748781046217,-591.3,0.00019178,2]
[363600834,1748781046226,-430.0,0.00019178,2]
[363600836,1748781046236,-611.59,0.00019178,2]
[363600838,1748781046245,-430.0,0.00019178,2]
[363600839,1748781046255,-732.75,0.00019178,2]
[363600841,1748781046265,-647.88,0.00019178,2]
[363600843,1748781046275,-531.04,0.00019178,2]
[363600845,1748781046284,-430.0,0.00019178,2]
[363600847,1748781046294,-555.46,0.00019178,2]
[363600849,1748781046303,-721.44,0.00019178,2]
[363600851,1748781046313,-500.0,0.00019178,2]
[363600853,1748781046322,-500.0,0.00019178,2]
[363600854,1748781046332,-500.0,0.00019178,2]
[363600856,1748781046342,-500.0,0.00019178,2]
[363600858,1748781046352,-508.88724552,0.00019178,2]
[363600859,1748781046361,-500.0,0.00019178,2]
[363600860,1748781046371,-500.0,0.00019178,2]
[363600861,1748781046381,-500.0,0.00019178,2]
[363600862,1748781046390,-1029.71,0.00019178,2]
[363600863,1748781046400,-430.0,0.00019178,2]
[363600864,1748781046410,-151.0,0.00019178,2]
[363600865,1748781046420,-171.710723,0.00019178,2]
[363600866,1748781046429,-500.0,0.00019205,2]
[363600867,1748781046438,-500.0,0.00019232,2]
[363600868,1748781046448,-156.587,0.00019233,2]
[363600869,1748781046457,-519.70768548,0.0001926,2]
[363600870,1748781046466,-162.380719,0.00019288,2]
[363600871,1748781046475,-171.94471898,0.00019317,2]
[363600872,1748781046484,-500.0,0.00019321,2]
[363600873,1748781046493,-353.50685179,0.00019321,2]
[363600874,1748781046503,-500.0,0.00019321,2]
[363600875,1748781046512,-168.3888056,0.00019343,2]
[363600876,1748781046521,-174.61919141,0.00019398,2]
[363600877,1748781046531,-430.0,0.00019452,2]
[363600878,1748781046540,-430.0,0.00019452,2]
[363600879,1748781046550,-430.0,0.00019452,2]
[363600880,1748781046560,-1896.3,0.00019452,2]
[363600881,1748781046570,-496.36,0.00019452,2]
[363600882,1748781046579,-1002.71,0.00019452,2]
[363600883,1748781046589,-2245.79,0.00019452,2]
[363600884,1748781046598,-1360.06,0.00019452,2]
[363600885,1748781046608,-1717.0,0.00019452,2]
[363600886,1748781046618,-1423.19,0.00019452,2]
[363600887,1748781046628,-430.0,0.00019452,2]
[363600888,1748781046637,-648.48,0.00019452,2]
[363600889,1748781046649,-591.3,0.00019452,2]
[363600890,1748781046659,-430.0,0.00019452,2]
[363600891,1748781046668,-611.59,0.00019452,2]
[363600892,1748781046677,-417.18,0.00019452,2]
[363600893,1748781046686,-732.75,0.00019452,2]
[363600894,1748781046696,-647.88,0.00019452,2]
[363600895,1748781046705,-531.04,0.00019452,2]
[363600897,1748781046715,-430.0,0.00019452,2]
[363600898,1748781046724,-555.46,0.00019452,2]
[363600899,1748781046733,-721.44,0.00019452,2]
[363600901,1748781046743,-1029.71,0.00019452,2]
[363600902,1748781046752,-430.0,0.00019452,2]
[363600904,1748781046762,-181.08010149,0.00019453,2]
[363600906,1748781046772,-201.36143953,0.00019461,2]
[363600908,1748781046781,-187.78006525,0.00019508,2]
[363600910,1748781046791,-194.72792766,0.00019563,2]
[363600912,1748781046800,-279.908,0.0001958,2]
[363600914,1748781046810,-201.93286099,0.00019618,2]
[363600916,1748781046820,-209.40437684,0.00019673,2]
[363600918,1748781046829,-430.0,0.00019726,2]
[363600920,1748781046839,-430.0,0.00019726,2]
[363600922,1748781046849,-430.0,0.00019726,2]
[363600924,1748781046858,-1896.3,0.00019726,2]
[363600926,1748781046871,-496.36,0.00019726,2]
[363600929,1748781046882,-1002.71,0.00019726,2]
[363600930,1748781046893,-2245.79,0.00019726,2]
[363600932,1748781046902,-1360.06,0.00019726,2]
[363600934,1748781046912,-1717.0,0.00019726,2]
[363600937,1748781046923,-1423.19,0.00019726,2]
[363600938,1748781046932,-430.0,0.00019726,2]
[363600940,1748781046942,-648.48,0.00019726,2]
[363600943,1748781046954,-591.3,0.00019726,2]
[363600945,1748781046965,-430.0,0.00019726,2]
[363600947,1748781046976,-611.59,0.00019726,2]
[363600949,1748781046986,-732.75,0.00019726,2]
[363600951,1748781046996,-647.88,0.00019726,2]
[363600953,1748781047005,-531.04,0.00019726,2]
[363600955,1748781047015,-430.0,0.00019726,2]
[363600957,1748781047025,-555.46,0.00019726,2]
[363600959,1748781047035,-721.44,0.00019726,2]
[363600961,1748781047045,-1029.71,0.00019726,2]
[363600963,1748781047055,-217.15233878,0.00019728,2]
[363600965,1748781047064,-225.18697532,0.00019783,2]
[363600967,1748781047074,-300.722319,0.00019817,2]
[363600969,1748781047084,-233.51889341,0.00019838,2]
[363600971,1748781047093,-1000.0,0.00019869,2]
[363600973,1748781047103,-242.15909246,0.00019893,2]
[363600975,1748781047112,-251.11897888,0.00019948,2]
[363600977,1748781047122,-430.0,0.0002,2]
[363600979,1748781047131,-358.43,0.0002,2]
[363600981,1748781047142,-346.87503019,0.0002,2]
[363600983,1748781047153,-1896.3,0.0002,2]
[363600985,1748781047163,-496.36,0.0002,2]
[363600987,1748781047173,-1002.71,0.0002,2]
[363600989,1748781047182,-2245.79,0.0002,2]
[363600991,1748781047191,-1360.06,0.0002,2]
[363600993,1748781047201,-1717.0,0.0002,2]
[363600995,1748781047211,-1423.19,0.0002,2]
[363600997,1748781047221,-430.0,0.0002,2]
[363600999,1748781047231,-648.48,0.0002,2]
[363601002,1748781047241,-591.3,0.0002,2]
[363601003,1748781047251,-430.0,0.0002,2]
[363601005,1748781047260,-611.59,0.0002,2]
[363601008,1748781047270,-168310.3001893,0.0002,2]
[363601021,1748781047387,-492.89384318,0.00019726,2]
[363601023,1748781047396,-2347.59916131,0.0002,2]
[363601025,1748781047405,-732.75,0.0002,2]
[363601027,1748781047416,-647.88,0.0002,2]
[363601029,1748781047426,-531.04,0.0002,2]
[363601031,1748781047436,-430.0,0.0002,2]
[363601033,1748781047446,-555.46,0.0002,2]
[363601035,1748781047456,-721.44,0.0002,2]
[363601037,1748781047466,-1029.71,0.0002,2]
[363601039,1748781047476,-260.4103811,0.00020003,2]
[363601041,1748781047486,-270.0455652,0.00020058,2]
[363601043,1748781047496,-500.0,0.00020067,2]
[363601045,1748781047507,-305.56901538,0.00020113,2]
[363601047,1748781047516,-394.103222,0.00020187,2]
[363601049,1748781047526,-430.0,0.00020273,2]
[363601051,1748781047536,-160.0,0.00020273,2]
[363601053,1748781047546,-1896.3,0.00020273,2]
[363601055,1748781047556,-496.36,0.00020273,2]
[363601057,1748781047566,-1002.71,0.00020273,2]
[363601060,1748781047576,-2245.79,0.00020273,2]
[363601062,1748781047587,-1360.06,0.00020273,2]
[363601064,1748781047597,-1717.0,0.00020273,2]
[363601066,1748781047607,-1423.19,0.00020273,2]
[363601068,1748781047617,-430.0,0.00020273,2]
[363601070,1748781047627,-648.48,0.00020273,2]
[363601072,1748781047637,-591.3,0.00020273,2]
[363601074,1748781047647,-430.0,0.00020273,2]
[363601076,1748781047656,-611.59,0.00020273,2]
[363601078,1748781047666,-732.75,0.00020273,2]
[363601080,1748781047675,-647.88,0.00020273,2]
[363601082,1748781047685,-531.04,0.00020273,2]
[363601084,1748781047694,-566.93,0.00020273,2]
[363601086,1748781047704,-555.46,0.00020273,2]
[363601088,1748781047713,-721.44,0.00020273,2]
[363601090,1748781047723,-1029.71,0.00020273,2]
[363601092,1748781047732,-234.55748039,0.00020285,2]
[363601094,1748781047742,-500.0,0.00020421,2]
[363601096,1748781047752,-430.0,0.00020547,2]
[363601098,1748781047762,-1896.3,0.00020547,2]
[363601100,1748781047771,-496.36,0.00020547,2]
[363601102,1748781047781,-1002.71,0.00020547,2]
[363601104,1748781047791,-2245.79,0.00020547,2]
[363601106,1748781047801,-1360.06,0.00020547,2]
[363601108,1748781047810,-1717.0,0.00020547,2]
[363601110,1748781047821,-1423.19,0.00020547,2]
[363601112,1748781047832,-430.0,0.00020547,2]
[363601114,1748781047841,-648.48,0.00020547,2]
[363601116,1748781047851,-591.3,0.00020547,2]
[363601118,1748781047860,-552.34,0.00020547,2]
[363601120,1748781047872,-611.59,0.00020547,2]
[363601122,1748781047883,-732.75,0.00020547,2]
[363601124,1748781047892,-647.88,0.00020547,2]
[363601126,1748781047902,-531.04,0.00020547,2]
[363601128,1748781047911,-555.46,0.00020547,2]
[363601130,1748781047922,-721.44,0.00020547,2]
[363601132,1748781047931,-1029.71,0.00020547,2]
[363601134,1748781047941,-238.14,0.000206,2]
[363601136,1748781047950,-388.05,0.000206,2]
[363601138,1748781047960,-2864.97,0.000206,2]
[363601140,1748781047970,-28732.12,0.000206,2]
[363601142,1748781047980,-979.9804,0.00020657,2]
[363601144,1748781047989,-171.94471898,0.00020806,2]
[363601146,1748781047999,-430.0,0.00020821,2]
[363601148,1748781048009,-1896.3,0.00020821,2]
[363601150,1748781048018,-496.36,0.00020821,2]
[363601152,1748781048027,-1002.71,0.00020821,2]
[363601154,1748781048038,-2245.79,0.00020821,2]
[363601156,1748781048048,-1360.06,0.00020821,2]
[363601158,1748781048058,-1717.0,0.00020821,2]
[363601160,1748781048067,-1423.19,0.00020821,2]
[363601163,1748781048077,-430.0,0.00020821,2]
[363601165,1748781048087,-648.48,0.00020821,2]
[363601167,1748781048096,-591.3,0.00020821,2]
[363601169,1748781048106,-611.59,0.00020821,2]
[363601170,1748781048116,-732.75,0.00020821,2]
[363601173,1748781048126,-647.88,0.00020821,2]
[363601175,1748781048135,-531.04,0.00020821,2]
[363601177,1748781048144,-555.46,0.00020821,2]
[363601179,1748781048154,-721.44,0.00020821,2]
[363601181,1748781048163,-1029.71,0.00020821,2]
[363601183,1748781048172,-500.97,0.00021,2]
[363601184,1748781048182,-430.0,0.00021095,2]
[363601187,1748781048191,-1896.3,0.00021095,2]
[363601188,1748781048200,-496.36,0.00021095,2]
[363601190,1748781048210,-1002.71,0.00021095,2]
[363601193,1748781048220,-2245.79,0.00021095,2]
[363601195,1748781048229,-1360.06,0.00021095,2]
[363601196,1748781048238,-1717.0,0.00021095,2]
[363601199,1748781048248,-1423.19,0.00021095,2]
[363601200,1748781048257,-430.0,0.00021095,2]
[363601202,1748781048267,-648.48,0.00021095,2]
[363601205,1748781048277,-591.3,0.00021095,2]
[363601207,1748781048286,-611.59,0.00021095,2]
[363601209,1748781048296,-732.75,0.00021095,2]
[363601211,1748781048305,-647.88,0.00021095,2]
[363601213,1748781048316,-531.04,0.00021095,2]
[363601215,1748781048325,-555.46,0.00021095,2]
[363601217,1748781048335,-721.44,0.00021095,2]
[363601219,1748781048345,-1029.71,0.00021095,2]
[363601221,1748781048355,-405.0,0.00021328,2]
[363601223,1748781048364,-708.0,0.00021328,2]
[363601225,1748781048374,-195.16,0.00021369,2]
[363601227,1748781048384,-1896.3,0.00021369,2]
[363601229,1748781048394,-496.36,0.00021369,2]
[363601231,1748781048403,-1002.71,0.00021369,2]
[363601233,1748781048413,-2245.79,0.00021369,2]
[363601235,1748781048423,-1360.06,0.00021369,2]
[363601237,1748781048432,-1717.0,0.00021369,2]
[363601238,1748781048443,-1423.19,0.00021369,2]
[363601241,1748781048453,-430.0,0.00021369,2]
[363601242,1748781048463,-648.48,0.00021369,2]
[363601245,1748781048474,-591.3,0.00021369,2]
[363601246,1748781048484,-611.59,0.00021369,2]
[363601248,1748781048494,-732.75,0.00021369,2]
[363601250,1748781048504,-647.88,0.00021369,2]
[363601252,1748781048514,-531.04,0.00021369,2]
[363601254,1748781048524,-555.46,0.00021369,2]
[363601256,1748781048534,-721.44,0.00021369,2]
[363601258,1748781048543,-1029.71,0.00021369,2]
[363601260,1748781048553,-160.0,0.00021643,2]
[363601265,1748781048593,-1896.3,0.00021643,2]
[363601267,1748781048603,-496.36,0.00021643,2]
[363601269,1748781048612,-1002.71,0.00021643,2]
[363601271,1748781048622,-2245.79,0.00021643,2]
[363601273,1748781048632,-1360.06,0.00021643,2]
[363601275,1748781048642,-1717.0,0.00021643,2]
[363601277,1748781048652,-1423.19,0.00021643,2]
[363601279,1748781048662,-430.0,0.00021643,2]
[363601281,1748781048673,-648.48,0.00021643,2]
[363601283,1748781048683,-591.3,0.00021643,2]
[363601285,1748781048693,-611.59,0.00021643,2]
[363601287,1748781048702,-732.75,0.00021643,2]
[363601289,1748781048711,-647.88,0.00021643,2]
[363601291,1748781048722,-531.04,0.00021643,2]
[363601293,1748781048732,-555.46,0.00021643,2]
[363601295,1748781048742,-721.44,0.00021643,2]
[363601297,1748781048752,-1029.71,0.00021643,2]
[363601299,1748781048762,-1896.3,0.00021917,2]
[363601301,1748781048772,-496.36,0.00021917,2]
[363601303,1748781048781,-1002.71,0.00021917,2]
[363601305,1748781048792,-2245.79,0.00021917,2]
[363601307,1748781048804,-1360.06,0.00021917,2]
[363601309,1748781048814,-1717.0,0.00021917,2]
[363601311,1748781048824,-1423.19,0.00021917,2]
[363601313,1748781048833,-430.0,0.00021917,2]
[363601315,1748781048843,-648.48,0.00021917,2]
[363601317,1748781048853,-591.3,0.00021917,2]
[363601319,1748781048863,-611.59,0.00021917,2]
[363601321,1748781048876,-732.75,0.00021917,2]
[363601323,1748781048886,-647.88,0.00021917,2]
[363601325,1748781048897,-531.04,0.00021917,2]
[363601327,1748781048907,-555.46,0.00021917,2]
[363601329,1748781048919,-721.44,0.00021917,2]
[363601331,1748781048928,-1029.71,0.00021917,2]
[363601333,1748781048938,-234.55748039,0.00021985,2]
[363601335,1748781048948,-1366.405,0.00022,2]
[363601337,1748781048957,-167.0,0.00022,2]
[363601339,1748781048967,-3657.60438224,0.00022,2]
[363601341,1748781048978,-166.0,0.00022,2]
[363601343,1748781048988,-126786.23,0.00022,7]
[363601345,1748781048998,-1896.3,0.00022191,2]
[363601347,1748781049008,-496.36,0.00022191,2]
[363601349,1748781049018,-1002.71,0.00022191,2]
[363601351,1748781049028,-2245.79,0.00022191,2]
[363601353,1748781049038,-1360.06,0.00022191,2]
[363601355,1748781049049,-1717.0,0.00022191,2]
[363601357,1748781049059,-1423.19,0.00022191,2]
[363601359,1748781049070,-430.0,0.00022191,2]
[363601361,1748781049081,-648.48,0.00022191,2]
[363601363,1748781049092,-591.3,0.00022191,2]
[363601365,1748781049102,-611.59,0.00022191,2]
[363601367,1748781049111,-732.75,0.00022191,2]
[363601369,1748781049123,-647.88,0.00022191,2]
[363601371,1748781049133,-531.04,0.00022191,2]
[363601373,1748781049144,-555.46,0.00022191,2]
[363601375,1748781049154,-721.44,0.00022191,2]
[363601377,1748781049163,-1029.71,0.00022191,2]
[363601379,1748781049174,-500.0,0.00022259,2]
[363601381,1748781049185,-171.94471898,0.00022296,2]
[363601383,1748781049195,-1896.3,0.00022465,2]
[363601385,1748781049205,-496.36,0.00022465,2]
[363601387,1748781049216,-1002.71,0.00022465,2]
[363601389,1748781049228,-2245.79,0.00022465,2]
[363601391,1748781049239,-1360.06,0.00022465,2]
[363601393,1748781049249,-1717.0,0.00022465,2]
[363601395,1748781049259,-1423.19,0.00022465,2]
[363601397,1748781049270,-430.0,0.00022465,2]
[363601399,1748781049280,-648.48,0.00022465,2]
[363601401,1748781049290,-591.3,0.00022465,2]
[363601403,1748781049300,-611.59,0.00022465,2]
[363601405,1748781049311,-732.75,0.00022465,2]
[363601407,1748781049321,-647.88,0.00022465,2]
[363601409,1748781049331,-531.04,0.00022465,2]
[363601411,1748781049340,-555.46,0.00022465,2]
[363601413,1748781049351,-721.44,0.00022465,2]
[363601415,1748781049361,-1029.71,0.00022465,2]
[363601417,1748781049371,-2864.97,0.000225,2]
[363601419,1748781049382,-28732.12,0.000225,2]
[363601421,1748781049392,-154.67873888,0.00022572,2]
[363601423,1748781049403,-207.4,0.00022572,2]
[363601426,1748781049413,-600.0,0.00022572,2]
[363601427,1748781049423,-600.0,0.00022572,2]
[363601430,1748781049433,-600.0,0.00022572,2]
[363601431,1748781049442,-600.0,0.00022572,2]
[363601433,1748781049452,-600.0,0.00022572,2]
[363601435,1748781049462,-600.0,0.00022572,2]
[363601437,1748781049472,-600.0,0.00022572,2]
[363601440,1748781049481,-5000.0,0.00022572,2]
[363601442,1748781049492,-600.0,0.00022572,2]
[363601444,1748781049501,-600.0,0.00022572,2]
[363601446,1748781049510,-600.0,0.00022572,2]
[363601448,1748781049519,-600.0,0.00022572,2]
[363601450,1748781049529,-600.0,0.00022572,2]
[363601452,1748781049537,-600.0,0.00022572,2]
[363601454,1748781049545,-600.0,0.00022572,2]
[363601456,1748781049555,-257.67279037,0.00022572,2]
[363601458,1748781049566,-1896.37,0.00022739,2]
[363601460,1748781049577,-496.43,0.00022739,2]
[363601462,1748781049587,-1002.87,0.00022739,2]
[363601464,1748781049596,-2245.79,0.00022739,2]
[363601466,1748781049606,-1360.13,0.00022739,2]
[363601468,1748781049616,-1717.16,0.00022739,2]
[363601470,1748781049626,-1423.36,0.00022739,2]
[363601472,1748781049635,-422.72904721,0.00022739,2]
[363601474,1748781049645,-648.53122629,0.00022739,2]
[363601476,1748781049654,-591.43261158,0.00022739,2]
[363601478,1748781049664,-611.64,0.00022739,2]
[363601480,1748781049674,-732.93,0.00022739,2]
[363601482,1748781049683,-647.89,0.00022739,2]
[363601484,1748781049693,-531.07,0.00022739,2]
[363601486,1748781049703,-555.69,0.00022739,2]
[363601488,1748781049713,-721.67,0.00022739,2]
[363601490,1748781049723,-1029.73,0.00022739,2]
[363601492,1748781049732,-388.05,0.000228,7]
[363601494,1748781049742,-499.99999901,0.0002298,2]
[363601495,1748781049751,-9472.87749701,0.00023,3]
[363601497,1748781049761,-92436.04660888,0.00023,2]
[363601499,1748781049771,-2844.03433669,0.00023,2]
[363601501,1748781049780,-188005.57299744,0.00023,3]
[363601503,1748781049791,-160.0,0.00023,3]
[363601506,1748781049802,-160.0,0.00023,3]
[363601507,1748781049811,-182.15453462,0.00023013,2]
[363601508,1748781049821,-155.3651621,0.00023014,2]
[363601509,1748781049830,-306.4242624,0.00023041,2]
[363601510,1748781049839,-151.0,0.000231,6]
[363601511,1748781049849,-151.0,0.000231,10]
[363601512,1748781049859,-30391.77,0.00023329,6]
[363601513,1748781049869,-122938.48,0.00023329,6]
[363601514,1748781049882,-9859.40490574,0.00023411,2]
[363601515,1748781049892,-5000.0,0.00023411,2]
[363601516,1748781049901,-5000.0,0.00023411,2]
[363601517,1748781049910,-5000.0,0.00023411,2]
[363601518,1748781049921,-5000.0,0.00023411,2]
[363601519,1748781049931,-1246.737351,0.00023422,3]
[363601520,1748781049940,-3695.69825899,0.00023592,2]
[363601521,1748781049951,-3088.65435801,0.000236,5]
[363601522,1748781049961,-234.55748039,0.00023684,2]
[363601523,1748781049970,-157.461914,0.00023695,3]
[363601524,1748781049981,-175.527556,0.00023695,3]
[363601525,1748781049990,-238.14,0.000237,7]
[363601526,1748781049999,-153.0,0.000237,31]
[363601527,1748781050009,-153.0,0.000237,31]
[363601528,1748781050019,-153.0,0.000237,31]
[363601530,1748781050029,-153.0,0.000237,31]
[363601532,1748781050039,-153.0,0.000237,31]
[363601534,1748781050048,-153.0,0.000237,31]
[363601536,1748781050058,-153.0,0.000237,31]
[363601538,1748781050068,-153.0,0.000237,31]
[363601540,1748781050077,-153.0,0.000237,31]
[363601542,1748781050088,-153.0,0.000237,31]
[363601544,1748781050098,-153.0,0.000237,31]
[363601546,1748781050108,-153.0,0.000237,31]
[363601548,1748781050118,-153.0,0.000237,31]
[363601550,1748781050128,-153.0,0.000237,31]
[363601552,1748781050138,-153.0,0.000237,31]
[363601554,1748781050148,-1502.93,0.000237,7]
[363601556,1748781050158,-1740.08153917,0.0002373,2]
[363601558,1748781050168,-1740.08153913,0.00023736,2]
[363601560,1748781050177,-1740.08153913,0.00023742,2]
[363601562,1748781050187,-171.710723,0.00023744,2]
[363601564,1748781050196,-1740.08153913,0.00023747,2]
[363601566,1748781050206,-1740.08153913,0.00023753,2]
[363601568,1748781050216,-1740.08153913,0.00023759,2]
[363601570,1748781050226,-1740.08153913,0.00023765,2]
[363601572,1748781050236,-1740.08153913,0.0002377,2]
[363601574,1748781050246,-649.21402904,0.00023773,2]
[363601576,1748781050255,-339.88545409,0.00023773,2]
[363601578,1748781050265,-150.0,0.00023773,2]
[363601580,1748781050275,-1740.08153913,0.00023776,2]
[363601582,1748781050284,-1740.08153913,0.00023782,2]
[363601584,1748781050294,-5000.0,0.00023783,30]
[363601586,1748781050304,-5000.0,0.00023783,30]
[363601588,1748781050314,-5000.0,0.00023783,30]
[363601590,1748781050324,-5000.0,0.00023783,30]
[363601592,1748781050335,-5000.0,0.00023783,30]
[363601594,1748781050345,-5000.0,0.00023783,30]
[363601596,1748781050355,-5000.0,0.00023783,30]
[363601598,1748781050365,-5000.0,0.00023783,30]
[363601600,1748781050375,-5000.0,0.00023783,30]
[363601603,1748781050386,-5000.0,0.00023783,30]
[363601604,1748781050395,-5000.0,0.00023783,30]
[363601607,1748781050405,-5000.0,0.00023783,30]
[363601608,1748781050415,-5000.0,0.00023783,30]
[363601610,1748781050425,-5000.0,0.00023783,30]
[363601612,1748781050435,-5000.0,0.00023783,30]
[363601614,1748781050446,-5000.0,0.00023783,30]
[363601617,1748781050456,-5000.0,0.00023783,30]
[363601619,1748781050466,-5000.0,0.00023783,30]
[363601621,1748781050476,-5000.0,0.00023783,30]
[363601623,1748781050486,-5000.0,0.00023783,30]
[363601625,1748781050496,-5000.0,0.00023783,30]
[363601627,1748781050506,-5000.0,0.00023783,30]
[363601629,1748781050515,-1019.5,0.00023783,30]
[363601631,1748781050525,-12666.87825251,0.00023783,30]
[363601633,1748781050536,-171.94471898,0.00023785,2]
[363601635,1748781050545,-2000.0,0.000238,2]
[363601637,1748781050555,-2000.0,0.000238,2]
[363601639,1748781050565,-2000.0,0.000238,2]
[363601641,1748781050575,-126786.23,0.000238,7]
[363601643,1748781050586,-150.0,0.000238,5]
[363601645,1748781050596,-952.0,0.000238,3]
[363601647,1748781050606,-952.0,0.000238,3]
[363601649,1748781050616,-952.0,0.000238,3]
[363601651,1748781050625,-952.0,0.000238,3]
[363601653,1748781050635,-952.0,0.000238,3]
[363601655,1748781050644,-952.0,0.000238,3]
[363601657,1748781050654,-952.0,0.000238,3]
[363601659,1748781050665,-952.0,0.000238,3]
[363601661,1748781050675,-952.0,0.000238,3]
[363601663,1748781050684,-952.0,0.000238,3]
[363601665,1748781050694,-423.51412927,0.000238,3]
[363601667,1748781050704,-229.3709046,0.000238,3]
[363601669,1748781050714,-311566.6185195,0.000238,2]
[363601672,1748781050740,-2102.75507153,0.000238,2]
[363601681,1748781050820,-2244.82143821,0.000238,2]
[363603312,1748781068628,6260.40243061,0.00024657,120]
[363603571,1748781945128,-300.0,0.00016437,2]
[363603572,1748781945150,-300.0,0.00016437,2]
[363603573,1748781945172,-430.0,0.00016438,2]
[363603574,1748781945196,-430.0,0.00016438,2]
[363603575,1748781945217,-430.0,0.00016438,2]
[363603576,1748781945239,-470.0,0.00016438,2]
[363603577,1748781945260,-430.0,0.00016438,2]
[363603578,1748781945282,-430.0,0.00016438,2]
[363603579,1748781945303,-408.54206887,0.00016438,2]
[363603580,1748781945324,-430.0,0.00016438,2]
[363603581,1748781945344,-430.0,0.00016438,2]
[363603582,1748781945367,-430.0,0.00016438,2]
[363603583,1748781945388,-430.0,0.00016438,2]
[363603584,1748781945409,-430.0,0.00016438,2]
[363603585,1748781945430,-427.36461678,0.00016438,2]
[363603587,1748782029084,-1440.88899813,0.00016437,2]
[363603589,1748782051090,-3427.11100187,0.00016437,2]
[363603590,1748782051113,-300.0,0.00016437,2]
[363603591,1748782051136,-2.63538322,0.00016438,2]
[363603592,1748782051159,-430.0,0.00016438,2]
[363603593,1748782051181,-500.0,0.00016438,2]
[363603594,1748782051203,-430.0,0.00016438,2]
[363603595,1748782051226,-430.0,0.00016438,2]
[363603596,1748782051248,-430.0,0.00016438,2]
[363603597,1748782051270,-430.0,0.00016438,2]
[363603598,1748782051292,-433.86,0.00016438,2]
[363603599,1748782051314,-430.0,0.00016438,2]
[363603600,1748782051336,-430.0,0.00016438,2]
[363603601,1748782051357,-430.0,0.00016438,2]
[363603602,1748782051378,-430.0,0.00016438,2]
[363603603,1748782051402,-430.0,0.00016438,2]
[363603604,1748782051423,-430.0,0.00016438,2]
[363603605,1748782051443,-430.0,0.00016438,2]
[363603606,1748782051464,-430.0,0.00016438,2]
[363603607,1748782051486,-259.04574517,0.00016438,2]
[363603608,1748782051509,-430.0,0.00016438,2]
[363603609,1748782051531,-430.0,0.00016438,2]
[363603610,1748782051553,-1901.0374758,0.00016438,2]
[363603611,1748782098090,838.743,0.00024658,120]
[363603612,1748782164081,-7422.91093634,0.00016199,2]
[363603624,1748782231785,24784.0,0.00024658,120]
[363603650,1748782232295,-250.8555093,0.00015855,2]
[363603651,1748782232305,-7840.17513266,0.00016199,2]
[363603652,1748782232325,-430.0,0.00016438,2]
[363603653,1748782232336,-430.0,0.00016438,2]
[363603654,1748782232346,-327.836711,0.00016711,2]
[363603655,1748782232359,-210.18940838,0.00016711,2]
[363603656,1748782232375,-430.0,0.00016711,2]
[363603657,1748782232387,-430.0,0.00016711,2]
[363603658,1748782232397,-430.0,0.00016711,2]
[363603659,1748782232407,-430.0,0.00016711,2]
[363603660,1748782232419,-430.0,0.00016711,2]
[363603661,1748782232429,-187.00213095,0.00016711,2]
[363603662,1748782232439,-430.0,0.00016712,2]